{"text_format":"3","workbook":"xlsx","n_sheets":1,"sheets":["Sheet1"],"not_rendered":{"images":34,"defined_names":1},"read":"whole","date_system":"1900"}

{"sheet":"Sheet1","index":0,"n_rows":51,"n_cols":8,"rows_kept":51,"merged":[[0,0,0,7],[5,2,7,2],[5,3,7,3],[5,4,7,4],[5,5,7,5],[5,6,7,6],[5,7,7,7],[13,2,14,2],[13,4,14,4],[44,1,45,1],[44,2,46,2],[50,0,50,3]]}
["贵阳开阳阳泰热电有限公司办公楼、倒班宿舍及食堂餐厅家具采购清单"]
["序号","名称","参考图片","规格（mm）","材质参数","数量","单位","最高单价限价"]
[1,"办公桌",null,"2400*1100*760（含副柜）\n","1.基材：采用优质E0级环保密度板，符合GB/T 39600-2021《人造板及其制品甲醛释放量分级》其中将甲醛释放量E0级不超过0.050mg/m³。\n2.面材：面板贴优质红胡桃木皮，含水率低，甲醛释放量≤0.1mg/m³，符合GB/T 18580-2017《室内装饰装修材料 人造板及其制品中甲醛释放限量》、GB/T 13010-2020《木材工业用单板》标准要求。\n3.白乳胶：游离甲醛≤0.08g/kg,苯≤0.1g/kg，甲苯+二甲苯＜0.1g/kg，总挥发性有机物≤30g/L；符合GB 18583-2008《室内装饰装修材料 胶粘剂中有害物质限量》(水机型聚乙酸乙烯酯胶粘剂)标准要求。\n4.油漆（含水性底漆和水性面漆）:有害物质限量：VOC含量（涂料）未检出，甲醛含量未检出，符合GB 18581- 2020《木器涂料中有害物质限量》标准要求。\n5.含所有五金安装配件。",5,"张","3000元/张"]
[null,"办公桌",null,"2600*1100*760（弧边、含副柜）","1.基材：采用优质E0级环保密度板，符合GB/T 39600-2021《人造板及其制品甲醛释放量分级》其中将甲醛释放量E0级不超过0.050mg/m³。\n2.面材：面板贴优质红胡桃木皮，含水率低，甲醛释放量≤0.1mg/m³，符合GB/T 18580-2017《室内装饰装修材料 人造板及其制品中甲醛释放限量》、GB/T 13010-2020《木材工业用单板》标准要求。\n3.白乳胶：游离甲醛≤0.08g/kg,苯≤0.1g/kg，甲苯+二甲苯＜0.1g/kg，总挥发性有机物≤30g/L；符合GB 18583-2008《室内装饰装修材料 胶粘剂中有害物质限量》(水机型聚乙酸乙烯酯胶粘剂)标准要求。\n4.油漆（含水性底漆和水性面漆）:有害物质限量：VOC含量（涂料）未检出，甲醛含量未检出，符合GB 18581- 2020《木器涂料中有害物质限量》标准要求。\n5.含所有五金安装配件。",2,"张","3000元/张"]
[2,"办公椅",null,"常规","1.面料：采用优质西皮，游离甲醛未检出，挥发性有机物（VOC）未检出，可萃取重金属（铅、镉）未检出，禁用偶氮染料未检出，皮革防霉等级1级（无霉菌生长，光学显微镜放大50倍观察），符合QB/T4199-2011《皮革防霉性能测试方法》:GB/T 16799-2018《家具用皮革》标准要求。\n2.海绵：采用优质海绵，75%压缩永久变形≤3%，回弹率≥50%，拉伸强度≥180KPa，伸长率≥201%，撕裂强度3.7N/cm，干热老化后拉伸强度≥161KPa,湿热老化后拉伸强度≥150KPa，抗引燃特性—模拟火柴火焰：未观察到试样表面或内部出现任何续燃、阴燃现象，评定该试样为阻燃Ⅱ级，通过模拟火柴火焰抗燃引燃特性试验，符合GB/T 10802-2006《通用软质聚醚型聚氨酯泡沫塑料》；GB 17927.2-2011《软体家具 床垫和沙发 抗引燃特性的评定 第2部分:模拟火柴火焰》标准要求。                             \n3.气压棒： F3为473N，启动力为482N，密封性能：气弹簧锁定在任意位置，经72h常温储存后，活塞杆未产生位移，耐高低温性能：公称力Fa衰减量为1%，循环寿命：公称力Fa衰减量为4%，外观性能要求：金属件（电镀层）无烧焦、气泡、针孔、裂纹、花斑（不包括镀彩锌和刮痕），符合GB/T 29525-2013《座椅升降气弹簧 技术条件》；GB/T 3325-2017《金属家具通用技术条件》标准要求。\n4.脚轮：采用优质脚轮。",7,"把","800元/把"]
[3,"书柜",null,"2700*480*2200","1.基材：采用优质E0级环保密度板，符合GB/T 39600-2021《人造板及其制品甲醛释放量分级》其中将甲醛释放量E0级不超过0.050mg/m³。\n2.面材：面板贴优质红胡桃木皮，含水率低，甲醛释放量≤0.1mg/m³，符合GB/T 18580-2017《室内装饰装修材料 人造板及其制品中甲醛释放限量》、GB/T 13010-2020《木材工业用单板》标准要求。\n3.白乳胶：游离甲醛≤0.08g/kg,苯≤0.1g/kg，甲苯+二甲苯＜0.1g/kg，总挥发性有机物≤30g/L；符合GB 18583-2008《室内装饰装修材料 胶粘剂中有害物质限量》(水机型聚乙酸乙烯酯胶粘剂)标准要求。\n4.油漆（含水性底漆和水性面漆）:有害物质限量：VOC含量（涂料）未检出，甲醛含量未检出，符合GB 18581- 2020《木器涂料中有害物质限量》标准要求。\n5.含所有五金安装配件。",7,"套","3200元/套"]
[4,"文件柜"]
[5,"更衣柜"]
[6,"三人沙发",null,"2150*950*900","1. 面料：采用优质西皮，游离甲醛未检出，挥发性有机物（VOC）未检出，可萃取重金属（铅、镉）未检出，禁用偶氮染料未检出，皮革防霉等级1级（无霉菌生长，光学显微镜放大50倍观察），符合QB/T4199-2011《皮革 防霉性能测试方法》:GB/T 16799-2018《家具用皮革》标准要求。\n2、海绵：采用优质海绵，75%压缩永久变形≤3%，回弹率≥50%，拉伸强度≥180KPa，伸长率≥201%，撕裂强度3.7N/cm，干热老化后拉伸强度≥161KPa,湿热老化后拉伸强度≥150KPa，抗引燃特性—模拟火柴火焰：未观察到试样表面或内部出现任何续燃、阴燃现象，评定该试样为阻燃Ⅱ级，通过模拟火柴火焰抗燃引燃特性试验，符合GB/T 10802-2006《通用软质聚醚型聚氨酯泡沫塑料》；GB 17927.2-2011《软体家具 床垫和沙发 抗引燃特性的评定 第2部分:模拟火柴火焰》标准要求。                             \n3.脚架： 采用优质实木脚。",7,"张","3000元/张"]
[7,"茶几",null,"1200*600*430","1.基材：采用优质E0级环保密度板，符合GB/T 39600-2021《人造板及其制品甲醛释放量分级》其中将甲醛释放量E0级不超过0.050mg/m³。\n2.面材：面板贴优质红胡桃木皮，含水率低，甲醛释放量≤0.1mg/m³，符合GB/T 18580-2017《室内装饰装修材料 人造板及其制品中甲醛释放限量》、GB/T 13010-2020《木材工业用单板》标准要求。\n3.白乳胶：游离甲醛≤0.08g/kg,苯≤0.1g/kg，甲苯+二甲苯＜0.1g/kg，总挥发性有机物≤30g/L；符合GB 18583-2008《室内装饰装修材料 胶粘剂中有害物质限量》(水机型聚乙酸乙烯酯胶粘剂)标准要求。\n4.油漆（含水性底漆和水性面漆）:有害物质限量：VOC含量（涂料）未检出，甲醛含量未检出，符合GB 18581- 2020《木器涂料中有害物质限量》标准要求。\n5.含所有五金安装配件。",7,"张","1000元/张"]
[8,"方几",{"$f":"_xlfn.DISPIMG(\"ID_639891DCF1494F73AAD14A47CC084C96\",1)","v":"=DISPIMG(\"ID_639891DCF1494F73AAD14A47CC084C96\",1)"},"600*600*430","1.基材：采用优质E0级环保密度板，符合GB/T 39600-2021《人造板及其制品甲醛释放量分级》其中将甲醛释放量E0级不超过0.050mg/m³。\n2.面材：面板贴优质红胡桃木皮，含水率低，甲醛释放量≤0.1mg/m³，符合GB/T 18580-2017《室内装饰装修材料 人造板及其制品中甲醛释放限量》、GB/T 13010-2020《木材工业用单板》标准要求。\n3.白乳胶：游离甲醛≤0.08g/kg,苯≤0.1g/kg，甲苯+二甲苯＜0.1g/kg，总挥发性有机物≤30g/L；符合GB 18583-2008《室内装饰装修材料 胶粘剂中有害物质限量》(水机型聚乙酸乙烯酯胶粘剂)标准要求。\n4.油漆（含水性底漆和水性面漆）:有害物质限量：VOC含量（涂料）未检出，甲醛含量未检出，符合GB 18581- 2020《木器涂料中有害物质限量》标准要求。\n5.含所有五金安装配件。",7,"张","800元/张"]
[9,"桌前椅",null,"常规","1. 面料：采用优质西皮，游离甲醛未检出，挥发性有机物（VOC）未检出，可萃取重金属（铅、镉）未检出，禁用偶氮染料未检出，皮革防霉等级1级（无霉菌生长，光学显微镜放大50倍观察），符合QB/T4199-2011《皮革 防霉性能测试方法》:GB/T 16799-2018《家具用皮革》标准要求。\n2.海绵：采用优质海绵，75%压缩永久变形≤3%，回弹率≥50%，拉伸强度≥180KPa，伸长率≥201%，撕裂强度3.7N/cm，干热老化后拉伸强度≥161KPa,湿热老化后拉伸强度≥150KPa，抗引燃特性—模拟火柴火焰：未观察到试样表面或内部出现任何续燃、阴燃现象，评定该试样为阻燃Ⅱ级，通过模拟火柴火焰抗燃引燃特性试验，符合GB/T 10802-2006《通用软质聚醚型聚氨酯泡沫塑料》；GB 17927.2-2011《软体家具 床垫和沙发 抗引燃特性的评定 第2部分:模拟火柴火焰》标准要求。                             \n3.脚架： 采用优质实木脚。",7,"把","800元/把"]
[10,"茶水柜",null,"1200*400*820","1.基材：采用优质E0级环保密度板，符合GB/T 39600-2021《人造板及其制品甲醛释放量分级》其中将甲醛释放量E0级不超过0.050mg/m³。\n2.面材：面板贴优质红胡桃木皮，含水率低，甲醛释放量≤0.1mg/m³，符合GB/T 18580-2017《室内装饰装修材料 人造板及其制品中甲醛释放限量》、GB/T 13010-2020《木材工业用单板》标准要求。\n3.白乳胶：游离甲醛≤0.08g/kg,苯≤0.1g/kg，甲苯+二甲苯＜0.1g/kg，总挥发性有机物≤30g/L；符合GB 18583-2008《室内装饰装修材料 胶粘剂中有害物质限量》(水机型聚乙酸乙烯酯胶粘剂)标准要求。\n4.油漆（含水性底漆和水性面漆）:有害物质限量：VOC含量（涂料）未检出，甲醛含量未检出，符合GB 18581- 2020《木器涂料中有害物质限量》标准要求。\n5.含所有五金安装配件。",7,"张","1500元/张"]
[11,"三人沙发",{"$f":"_xlfn.DISPIMG(\"ID_3256E7237A6C47B1B6D0B5E30A5D3953\",1)","v":"=DISPIMG(\"ID_3256E7237A6C47B1B6D0B5E30A5D3953\",1)"}," 2150*950*900","1. 面料：采用优质西皮，游离甲醛未检出，挥发性有机物（VOC）未检出，可萃取重金属（铅、镉）未检出，禁用偶氮染料未检出，皮革防霉等级1级（无霉菌生长，光学显微镜放大50倍观察），符合QB/T4199-2011《皮革 防霉性能测试方法》:GB/T 16799-2018《家具用皮革》标准要求。\n2.海绵：采用优质海绵，75%压缩永久变形≤3%，回弹率≥50%，拉伸强度≥180KPa，伸长率≥201%，撕裂强度3.7N/cm，干热老化后拉伸强度≥161KPa,湿热老化后拉伸强度≥150KPa，抗引燃特性—模拟火柴火焰：未观察到试样表面或内部出现任何续燃、阴燃现象，评定该试样为阻燃Ⅱ级，通过模拟火柴火焰抗燃引燃特性试验，符合GB/T 10802-2006《通用软质聚醚型聚氨酯泡沫塑料》；GB 17927.2-2011《软体家具 床垫和沙发 抗引燃特性的评定 第2部分:模拟火柴火焰》标准要求。                             \n3.脚架： 采用优质实木脚。                                                      ",2,"张","3000元/张"]
[12,"单人沙发",null,"  1150*950*900  ",null,2,"张","1500元/张"]
[13,"文件柜",{"$f":"_xlfn.DISPIMG(\"ID_B09AE0AC83F3418084A5847C63AFDA6E\",1)","v":"=DISPIMG(\"ID_B09AE0AC83F3418084A5847C63AFDA6E\",1)"},"900*400*1850","1.材质：选用不低于0.8mm优质冷轧钢板。五金件：专利旺通锁具，优质三节滑轨。\n2.颜色：门为白色粉，外框为灰色，内嵌式全钢扣手，一体成型，经久耐用、美观大方。\n3.喷塑工艺：用国内最先进的全自动流水线精致而成；经十工位表面处理，用环保“杜邦华佳环氧”聚脂塑粉喷塑而成，流水线喷塑而成；喷涂材料采用硬度最强耐腐蚀性最高不易褪色的环氧聚脂粉,经阳级氧化处理，具有防尘、阻燃、防静电、防污耐磨防潮的功能,喷塑硬度≥0.40，漆膜冲击强度≥N/m，漆膜厚度≥50μm。包装内含有安装图纸和视频，方便现场安装。质量符合国家环保标准",2,"个","1000元/个"]
[14,"茶几",null,"1200*600*430","1.基材：采用优质E0级环保密度板，符合GB/T 39600-2021《人造板及其制品甲醛释放量分级》其中将甲醛释放量E0级不超过0.050mg/m³。\n2.面材：面板贴优质红胡桃木皮，含水率低，甲醛释放量≤0.1mg/m³，符合GB/T 18580-2017《室内装饰装修材料 人造板及其制品中甲醛释放限量》、GB/T 13010-2020《木材工业用单板》标准要求。\n3.白乳胶：游离甲醛≤0.08g/kg,苯≤0.1g/kg，甲苯+二甲苯＜0.1g/kg，总挥发性有机物≤30g/L；符合GB 18583-2008《室内装饰装修材料 胶粘剂中有害物质限量》(水机型聚乙酸乙烯酯胶粘剂)标准要求。\n4.油漆（含水性底漆和水性面漆）:有害物质限量：VOC含量（涂料）未检出，甲醛含量未检出，符合GB 18581- 2020《木器涂料中有害物质限量》标准要求。\n5.含所有五金安装配件。",1,"个","1000元/个"]
[15,"方几",{"$f":"_xlfn.DISPIMG(\"ID_639891DCF1494F73AAD14A47CC084C96\",1)","v":"=DISPIMG(\"ID_639891DCF1494F73AAD14A47CC084C96\",1)"},"600*600*430","1.基材：采用优质E0级环保密度板，符合GB/T 39600-2021《人造板及其制品甲醛释放量分级》其中将甲醛释放量E0级不超过0.050mg/m³。\n2.面材：面板贴优质红胡桃木皮，含水率低，甲醛释放量≤0.1mg/m³，符合GB/T 18580-2017《室内装饰装修材料 人造板及其制品中甲醛释放限量》、GB/T 13010-2020《木材工业用单板》标准要求。\n3.白乳胶：游离甲醛≤0.08g/kg,苯≤0.1g/kg，甲苯+二甲苯＜0.1g/kg，总挥发性有机物≤30g/L；符合GB 18583-2008《室内装饰装修材料 胶粘剂中有害物质限量》(水机型聚乙酸乙烯酯胶粘剂)标准要求。\n4.油漆（含水性底漆和水性面漆）:有害物质限量：VOC含量（涂料）未检出，甲醛含量未检出，符合GB 18581- 2020《木器涂料中有害物质限量》标准要求。\n5.含所有五金安装配件。",1,"张","800元/张"]
[16,"茶水柜",null,"1200*400*820","1.基材：采用优质E0级环保密度板，符合GB/T 39600-2021《人造板及其制品甲醛释放量分级》其中将甲醛释放量E0级不超过0.050mg/m³。\n2.面材：面板贴优质红胡桃木皮，含水率低，甲醛释放量≤0.1mg/m³，符合GB/T 18580-2017《室内装饰装修材料 人造板及其制品中甲醛释放限量》、GB/T 13010-2020《木材工业用单板》标准要求。\n3.白乳胶：游离甲醛≤0.08g/kg,苯≤0.1g/kg，甲苯+二甲苯＜0.1g/kg，总挥发性有机物≤30g/L；符合GB 18583-2008《室内装饰装修材料 胶粘剂中有害物质限量》(水机型聚乙酸乙烯酯胶粘剂)标准要求。\n4.油漆（含水性底漆和水性面漆）:有害物质限量：VOC含量（涂料）未检出，甲醛含量未检出，符合GB 18581- 2020《木器涂料中有害物质限量》标准要求。\n5.含所有五金安装配件。",1,"张","1500元/张"]
[17,"密集柜",{"$f":"_xlfn.DISPIMG(\"ID_934B8D3550A64648AA946E64D82DC1A0\",1)","v":"=DISPIMG(\"ID_934B8D3550A64648AA946E64D82DC1A0\",1)"},"5535*580*2400","根据国家档案局 DA/T7-92 档案密集架行业标准和 GBT13667.3 图书密集架国家标准开发生产的，适用于机关、企事业单位图书资料室、档案室、样品室等存放图书资料、档案、货价、档案财务凭证、货物的新型装具，与传统式架、货价、档案架相比，储存量大，节省空间且更有传统性。\n1.底盘采用采用δ≥3.0mm 厚钢板一次滚压成型，分段焊接后整体组装式，纵梁上可以做到正面压制菱形图案，按节距冲有矩形槽，以供立柱插入后用螺栓拧固。底盘两端封头横梁与纵梁牢固焊接，保证底盘架体不扭曲、错位和变形等，具有防鼠功能。\n2.轨道采用δ≥3.0mm 厚镀锌钢板，经全自动数控流水线一次精加工而成，轨道底座采用三道弯边加强工艺，成型宽度为 120±2mm，中间设置两条凹槽筋，凹槽宽度为 15.5±2mm，高度 20±2mm，第三道弯边成型高度为 6±2mm，整体结构设计钢性足，承载能力强，不易变形。轨心采用 18*18 实心方钢材料置于 2mm 厚折弯成形轨座上，塞焊而成、分段连接，膨胀螺栓紧固于凹槽地面。\n3.立柱采用δ≥1.5mm 厚优质冷轧钢板一体成型工艺，设计为半敞开式，利于立柱表面喷涂全部到位，立柱成型尺寸 45X35mm，正面压制一条凹型圆筋，凹槽底部尺寸≥5mm，上面尺寸≥3mm，深度≥1.5mm,圆筋半径 1.5mm,不仅增强立柱承载能力也增加了立柱的美观性和新颖。侧面设有双排立柱调节孔，孔中心距 45mm，允许尺寸公差±1mm。\n4.层板采用δ≥1.2mm 厚冷轧钢板，正面可压型中式复古压型图案，常规无图案压型，简约大气，层板高度 27mm, 两边上凸 2MM,具有档案盒防滑功能。压有 6 道深 3MM，宽 6MM 的加强槽。能沿立柱垂直意调整高度。一次成型, 结构合理，使用方便，每层净承重要求≥80 公斤。结构造型如图。\n5.档书条采用δ≥1.2mm 厚冷轧钢板，一次成型，挡棒每面各压一条R1.6mm 的加强筋，共 3 条加强筋。口型状，两头凹槽且带有防滑扣，增强其强度且能阻挡档案滑向另一侧。检测符合：GB/T 3325-2017、QB/T 3826-1999等执行标准；检测厚度δ≥0.8mm；抗中性盐雾试验 120h 以上。\n6.挂板：采用δ≥1.2mm 厚冷轧钢板，正面压两条拉通式加强筋,表面压125×45mm 椭圆加强孔，承重≥40 公斤，承重能力强。结构造型如图。\n7.侧面板：采用δ≥1.0mm 厚冷轧钢板，表面亚光喷塑。侧面板强度高，正面按压不变形。两侧边做圆弧处理，保障使用安全。\n8.门板采用δ≥1.0mm 厚冷轧钢板，背面点焊加强筋，要求美观大方。右上门装有密集架闪电锁，组装后缝隙均匀，锁定紧密，开启灵活。\n9.顶板采用δ≥1.0mm 厚冷轧钢板,通过 M8 螺栓紧固于立柱上端既能加强架体的整体刚性又能起到防尘、防水的作用，经双面二次折弯，四角对焊，使其成框架结构。\n10.传动机构部分\n（1）自动折叠摇把釆用输入轴Φ15 实心轴承钢轴，双向偏心滚珠式离合器设计装置，利用偏心力带动传动装置起动，避免空转和噪音发出。手柄可以自动缓慢折叠，使用方便、美观大方、轻便灵活，高端耐用，可避免通道障碍，摇动任何一列均不会带动其他手柄转动，自动挂档，可单列或多列一起移动。\n（2）链轮为机械精加工而成,经锻压加工成型,回火去除应力,加工、滚点、插键槽、去毛齿、齿部经高频淬火 HRC60-62。\n（3）链条采用摩托车链条Φ8.5，节距 12.7，G12420 带短滚珠链。滚珠轴承采用省力型。链条破断力≥1800kg。\n（4）地轮采用精铸聚钢滚轮工艺，经锻压高频淬火加工成型。传动轴采用内径Φ20 实角 45#钢；\n（5）传动轴采用直径Φ22 实心 45#圆钢。连接钢管采用 1.5 毫米厚度内径Φ20 无缝钢管；\n（6）轴承采用 P204E 级带座球面轴承，精密度高，方向灵活，材料质量好，耐压与耐磨性能好，具有可靠的中心直线度，使架体滑动平衡、轻灵定位可靠，传动轻便灵活，摇手轻，运行平稳，性能达到和超过国家标准，即可单列移动也可多列同时移动。\n11.载重性能和装配要求\n（1）每标准节组装后，外形尺寸的极限偏差为±2mm，垂直度：立柱与底梁的垂直度≤2mm。\n（2）相邻两根导轨：宽度之间平行度偏差≤1mm/m，导轨对接处高低差：≤0.3mm。\n（3）传动装置的性能：应转动灵活、平稳、不得有失灵现象。\n（4）单根导轨：直线度≤1.0mm，水平偏差≤1.0mm。\n（5）间隙：侧面板和中腰板的对缝处的间隙≤1mm，防尘门缝间隙不大于 2mm。\n（6）各零件、组合件表面：各零部件表面应光滑、平整，不得有尖角和突起。\n（7）焊接件：焊接件应焊接牢固，焊痕光滑平整。\n（8）表面涂层：图层表面应平整光滑，色泽均匀一致，不应有流挂、起粒、皱皮、露底、剥落、伤痕等缺陷。\n（9）互换性：同一型号规格的搁板之间应能互换、同一型号规格的挂板之间应能互换。\n（10）搁板静载荷：搁板上均布静载荷 400N 以上，放置 24h，最大挠度≤4mm，卸载后 2h，残余变形量≤0.3mm。",154.1,"立方米"]
[18,"主席台",null,"4900*600*760，含配套椅子7把","1.基材：采用优质E0级环保密度板，符合GB/T 39600-2021《人造板及其制品甲醛释放量分级》其中将甲醛释放量E0级不超过0.050mg/m³。\n2.面材：面板贴优质红胡桃木皮，含水率低，甲醛释放量≤0.1mg/m³，符合GB/T 18580-2017《室内装饰装修材料 人造板及其制品中甲醛释放限量》、GB/T 13010-2020《木材工业用单板》标准要求。\n3.白乳胶：游离甲醛≤0.08g/kg,苯≤0.1g/kg，甲苯+二甲苯＜0.1g/kg，总挥发性有机物≤30g/L；符合GB 18583-2008《室内装饰装修材料 胶粘剂中有害物质限量》(水机型聚乙酸乙烯酯胶粘剂)标准要求。\n4.油漆（含水性底漆和水性面漆）:有害物质限量：VOC含量（涂料）未检出，甲醛含量未检出，符合GB 18581- 2020《木器涂料中有害物质限量》标准要求。\n5.含所有五金安装配件。",1,"套"]
[19,"培训桌",{"$f":"_xlfn.DISPIMG(\"ID_54BC6F1D14B6406282C0B3E77AF1C9AD\",1)","v":"=DISPIMG(\"ID_54BC6F1D14B6406282C0B3E77AF1C9AD\",1)"},"1200*400*760","1.基材：采用优质E0级环保密度板，符合GB/T 39600-2021《人造板及其制品甲醛释放量分级》其中将甲醛释放量E0级不超过0.050mg/m³。\n2.面材：面板贴优质红胡桃木皮，含水率低，甲醛释放量≤0.1mg/m³，符合GB/T 18580-2017《室内装饰装修材料 人造板及其制品中甲醛释放限量》、GB/T 13010-2020《木材工业用单板》标准要求。\n3.白乳胶：游离甲醛≤0.08g/kg,苯≤0.1g/kg，甲苯+二甲苯＜0.1g/kg，总挥发性有机物≤30g/L；符合GB 18583-2008《室内装饰装修材料 胶粘剂中有害物质限量》(水机型聚乙酸乙烯酯胶粘剂)标准要求。\n4.油漆（含水性底漆和水性面漆）:有害物质限量：VOC含量（涂料）未检出，甲醛含量未检出，符合GB 18581- 2020《木器涂料中有害物质限量》标准要求。\n5.含所有五金安装配件。",40,"张"]
[20,"培训椅",{"$f":"_xlfn.DISPIMG(\"ID_DEE873ABFD694A71992719701BB2FA76\",1)","v":"=DISPIMG(\"ID_DEE873ABFD694A71992719701BB2FA76\",1)"},"470*570*920","1. 面料：采用优质西皮，游离甲醛未检出，挥发性有机物（VOC）未检出，可萃取重金属（铅、镉）未检出，禁用偶氮染料未检出，皮革防霉等级1级（无霉菌生长，光学显微镜放大50倍观察），符合QB/T4199-2011《皮革 防霉性能测试方法》:GB/T 16799-2018《家具用皮革》标准要求。\n2.海绵：采用优质海绵，75%压缩永久变形≤3%，回弹率≥50%，拉伸强度≥180KPa，伸长率≥201%，撕裂强度3.7N/cm，干热老化后拉伸强度≥161KPa,湿热老化后拉伸强度≥150KPa，抗引燃特性—模拟火柴火焰：未观察到试样表面或内部出现任何续燃、阴燃现象，评定该试样为阻燃Ⅱ级，通过模拟火柴火焰抗燃引燃特性试验，符合GB/T 10802-2006《通用软质聚醚型聚氨酯泡沫塑料》；GB 17927.2-2011《软体家具 床垫和沙发 抗引燃特性的评定 第2部分:模拟火柴火焰》标准要求。                             \n3.脚架： 采用优质实木脚。",80,"把"]
[21,"发言台",{"$f":"_xlfn.DISPIMG(\"ID_0741D898AC21406E9344CA957EAFC41E\",1)","v":"=DISPIMG(\"ID_0741D898AC21406E9344CA957EAFC41E\",1)"},"680*530*1150","1.基材：采用优质E0级环保密度板，符合GB/T 39600-2021《人造板及其制品甲醛释放量分级》其中将甲醛释放量E0级不超过0.050mg/m³。\n2.面材：面板贴优质红胡桃木皮，含水率低，甲醛释放量≤0.1mg/m³，符合GB/T 18580-2017《室内装饰装修材料 人造板及其制品中甲醛释放限量》、GB/T 13010-2020《木材工业用单板》标准要求。\n3.白乳胶：游离甲醛≤0.08g/kg,苯≤0.1g/kg，甲苯+二甲苯＜0.1g/kg，总挥发性有机物≤30g/L；符合GB 18583-2008《室内装饰装修材料 胶粘剂中有害物质限量》(水机型聚乙酸乙烯酯胶粘剂)标准要求。\n4.油漆（含水性底漆和水性面漆）:有害物质限量：VOC含量（涂料）未检出，甲醛含量未检出，符合GB 18581- 2020《木器涂料中有害物质限量》标准要求。\n5.含所有五金安装配件。",1,"张"]
[22,"会议桌",{"$f":"_xlfn.DISPIMG(\"ID_46018C96B608480D8A8482A770EE8B1E\",1)","v":"=DISPIMG(\"ID_46018C96B608480D8A8482A770EE8B1E\",1)"},"6600*2000*760","1.基材：采用优质E0级环保密度板，符合GB/T 39600-2021《人造板及其制品甲醛释放量分级》其中将甲醛释放量E0级不超过0.050mg/m³。\n2.面材：面板贴优质红胡桃木皮，含水率低，甲醛释放量≤0.1mg/m³，符合GB/T 18580-2017《室内装饰装修材料 人造板及其制品中甲醛释放限量》、GB/T 13010-2020《木材工业用单板》标准要求。\n3.白乳胶：游离甲醛≤0.08g/kg,苯≤0.1g/kg，甲苯+二甲苯＜0.1g/kg，总挥发性有机物≤30g/L；符合GB 18583-2008《室内装饰装修材料 胶粘剂中有害物质限量》(水机型聚乙酸乙烯酯胶粘剂)标准要求。\n4.油漆（含水性底漆和水性面漆）:有害物质限量：VOC含量（涂料）未检出，甲醛含量未检出，符合GB 18581- 2020《木器涂料中有害物质限量》标准要求。\n5.含所有五金安装配件。",2,"张","1200元/平方米"]
[23,"会议椅",null,"650*750*1120","1. 面料：采用优质西皮，游离甲醛未检出，挥发性有机物（VOC）未检出，可萃取重金属（铅、镉）未检出，禁用偶氮染料未检出，皮革防霉等级1级（无霉菌生长，光学显微镜放大50倍观察），符合QB/T4199-2011《皮革 防霉性能测试方法》:GB/T 16799-2018《家具用皮革》标准要求。\n2.海绵：采用优质海绵，75%压缩永久变形≤3%，回弹率≥50%，拉伸强度≥180KPa，伸长率≥201%，撕裂强度3.7N/cm，干热老化后拉伸强度≥161KPa,湿热老化后拉伸强度≥150KPa，抗引燃特性—模拟火柴火焰：未观察到试样表面或内部出现任何续燃、阴燃现象，评定该试样为阻燃Ⅱ级，通过模拟火柴火焰抗燃引燃特性试验，符合GB/T 10802-2006《通用软质聚醚型聚氨酯泡沫塑料》；GB 17927.2-2011《软体家具 床垫和沙发 抗引燃特性的评定 第2部分:模拟火柴火焰》标准要求。                             \n3.脚架： 采用优质实木脚。",32,"把","800元/把"]
[24,"会议室桌",{"$f":"_xlfn.DISPIMG(\"ID_54BC6F1D14B6406282C0B3E77AF1C9AD\",1)","v":"=DISPIMG(\"ID_54BC6F1D14B6406282C0B3E77AF1C9AD\",1)"},"1200*400*760","1.基材：采用优质E0级环保密度板，符合GB/T 39600-2021《人造板及其制品甲醛释放量分级》其中将甲醛释放量E0级不超过0.050mg/m³。\n2.面材：面板贴优质红胡桃木皮，含水率低，甲醛释放量≤0.1mg/m³，符合GB/T 18580-2017《室内装饰装修材料 人造板及其制品中甲醛释放限量》、GB/T 13010-2020《木材工业用单板》标准要求。\n3.白乳胶：游离甲醛≤0.08g/kg,苯≤0.1g/kg，甲苯+二甲苯＜0.1g/kg，总挥发性有机物≤30g/L；符合GB 18583-2008《室内装饰装修材料 胶粘剂中有害物质限量》(水机型聚乙酸乙烯酯胶粘剂)标准要求。\n4.油漆（含水性底漆和水性面漆）:有害物质限量：VOC含量（涂料）未检出，甲醛含量未检出，符合GB 18581- 2020《木器涂料中有害物质限量》标准要求。\n5.含所有五金安装配件。",20,"张"]
[25,"会议椅",{"$f":"_xlfn.DISPIMG(\"ID_DEE873ABFD694A71992719701BB2FA76\",1)","v":"=DISPIMG(\"ID_DEE873ABFD694A71992719701BB2FA76\",1)"},"470*570*920","1. 面料：采用优质西皮，游离甲醛未检出，挥发性有机物（VOC）未检出，可萃取重金属（铅、镉）未检出，禁用偶氮染料未检出，皮革防霉等级1级（无霉菌生长，光学显微镜放大50倍观察），符合QB/T4199-2011《皮革 防霉性能测试方法》:GB/T 16799-2018《家具用皮革》标准要求。\n2.海绵：采用优质海绵，75%压缩永久变形≤3%，回弹率≥50%，拉伸强度≥180KPa，伸长率≥201%，撕裂强度3.7N/cm，干热老化后拉伸强度≥161KPa,湿热老化后拉伸强度≥150KPa，抗引燃特性—模拟火柴火焰：未观察到试样表面或内部出现任何续燃、阴燃现象，评定该试样为阻燃Ⅱ级，通过模拟火柴火焰抗燃引燃特性试验，符合GB/T 10802-2006《通用软质聚醚型聚氨酯泡沫塑料》；GB 17927.2-2011《软体家具 床垫和沙发 抗引燃特性的评定 第2部分:模拟火柴火焰》标准要求。                             \n3.脚架： 采用优质实木脚。",40,"把"]
[26,"办公桌",{"$f":"_xlfn.DISPIMG(\"ID_53C210B570D64A759F4188FDDA7451E5\",1)","v":"=DISPIMG(\"ID_53C210B570D64A759F4188FDDA7451E5\",1)"},"1200*600*750","1. 基材：采用优质三聚氰胺饰面刨花板，外观质量无污斑、无表面划痕、无表面压痕、无干花、湿花、无鼓包、静曲强度≥20.0MPa、弹性模量≥3200MPa、2h吸水厚度膨胀率≤5.8%、含水率7.3%、密度0.77g/cm³、握螺钉力（板面≥1300N、板边≥1000N），表面耐香烟灼烧5级，表面耐污染腐蚀5级，甲醛释放量未检出，总挥发性有机化合物（TVOC）未检出，防霉菌等级（黑曲霉）0级，符合JC/T 2039-2010《抗菌防霉木质装饰板》；GB 18580-2017《室内装饰装修材料人造板及其制品中甲醛释》；GB/T 15102-2017《浸渍胶膜纸饰面纤维板和创花板》；GB/T 35601-2017《绿色产品评价人造板和木质地板》标准要求。\n2.封边：选用优质封边条，可迁移元素（可溶性重金属）：铅、镉、铬、汞、砷、钡、锑、硒均未检出，塑料封边条：甲醛释放量≤0.2mg/L,氯乙烯单体≤0.3mg/kg,符合QB/T 4463-2013《家具用封边条技术要求》标准要求。\n3.热熔胶：游离甲苯二异氰酸酯未检出，游离甲醛≤0.08g/kg,苯未检出，甲苯+二甲苯未检出，总挥发性有机物≤5g/L,符合GB 18583-2008《室内装饰装修材料胶粘剂中有害物质限量》;HJ 2541-2016《环境标志产品技术要求胶粘剂》标准要求。\n4.含所有五金安装配件。",1,"张"]
[27,"办公椅",{"$f":"_xlfn.DISPIMG(\"ID_61AB2E5911224EEC811A06E3ACC480E3\",1)","v":"=DISPIMG(\"ID_61AB2E5911224EEC811A06E3ACC480E3\",1)"},"580*510*1080","网背：全新pp加纤料\n网布：进口环保型透气性好耐磨\n扶手：扶手全新pp\n气杆：SGS三级认证气杆安全抗压\n脚：全新PP加纤料\n底盘：一体蝴蝶可逍遥防爆底盘安全稳固\n海绵：高密度原切海绵；                        ",2,"把"]
[28,"三人沙发",{"$f":"_xlfn.DISPIMG(\"ID_3E52436E652D42149524DAFBE5B68768\",1)","v":"=DISPIMG(\"ID_3E52436E652D42149524DAFBE5B68768\",1)"},"1880*810*810","1. 面料：采用优质西皮，游离甲醛未检出，挥发性有机物（VOC）未检出，可萃取重金属（铅、镉）未检出，禁用偶氮染料未检出，皮革防霉等级1级（无霉菌生长，光学显微镜放大50倍观察），符合QB/T4199-2011《皮革 防霉性能测试方法》:GB/T 16799-2018《家具用皮革》标准要求。\n2.海绵：采用优质海绵，75%压缩永久变形≤3%，回弹率≥50%，拉伸强度≥180KPa，伸长率≥201%，撕裂强度3.7N/cm，干热老化后拉伸强度≥161KPa,湿热老化后拉伸强度≥150KPa，抗引燃特性—模拟火柴火焰：未观察到试样表面或内部出现任何续燃、阴燃现象，评定该试样为阻燃Ⅱ级，通过模拟火柴火焰抗燃引燃特性试验，符合GB/T 10802-2006《通用软质聚醚型聚氨酯泡沫塑料》；GB 17927.2-2011《软体家具 床垫和沙发 抗引燃特性的评定 第2部分:模拟火柴火焰》标准要求。                             \n3.脚架： 采用优质实木脚。",10,"张","3000元/张"]
[29,"茶几",{"$f":"_xlfn.DISPIMG(\"ID_9C25301191F042B28DBDD502C3ECFFDD\",1)","v":"=DISPIMG(\"ID_9C25301191F042B28DBDD502C3ECFFDD\",1)"},"1200*600*430","1.基材：采用优质E0级环保密度板，符合GB/T 39600-2021《人造板及其制品甲醛释放量分级》其中将甲醛释放量E0级不超过0.050mg/m³。\n2.面材：面板贴优质红胡桃木皮，含水率低，甲醛释放量≤0.1mg/m³，符合GB/T 18580-2017《室内装饰装修材料 人造板及其制品中甲醛释放限量》、GB/T 13010-2020《木材工业用单板》标准要求。\n3.白乳胶：游离甲醛≤0.08g/kg,苯≤0.1g/kg，甲苯+二甲苯＜0.1g/kg，总挥发性有机物≤30g/L；符合GB 18583-2008《室内装饰装修材料 胶粘剂中有害物质限量》(水机型聚乙酸乙烯酯胶粘剂)标准要求。\n4.油漆（含水性底漆和水性面漆）:有害物质限量：VOC含量（涂料）未检出，甲醛含量未检出，符合GB 18581- 2020《木器涂料中有害物质限量》标准要求。\n5.含所有五金安装配件。",10,"张","1000元/张"]
[30,"办公桌",{"$f":"_xlfn.DISPIMG(\"ID_9FC05C91172446A2BAA97B5F60CD6B6D\",1)","v":"=DISPIMG(\"ID_9FC05C91172446A2BAA97B5F60CD6B6D\",1)"},"1500*1400*1100","1. 基材：采用优质三聚氰胺饰面板，外观质量无污斑、无表面划痕、无表面压痕、无干花、湿花、无鼓包、静曲强度≥20.0MPa、弹性模量≥3200MPa、2h吸水厚度膨胀率≤5.8%、含水率7.3%、密度0.77g/cm³、握螺钉力（板面≥1300N、板边≥1000N），表面耐香烟灼烧5级，表面耐污染腐蚀5级，甲醛释放量未检出，总挥发性有机化合物（TVOC）未检出，防霉菌等级（黑曲霉）0级，符合JC/T 2039-2010《抗菌防霉木质装饰板》；GB 18580-2017《室内装饰装修材料人造板及其制品中甲醛释》；GB/T 15102-2017《浸渍胶膜纸饰面纤维板和创花板》；GB/T 35601-2017《绿色产品评价人造板和木质地板》标准要求。\n2.封边：选用优质封边条，可迁移元素（可溶性重金属）：铅、镉、铬、汞、砷、钡、锑、硒均未检出，塑料封边条：甲醛释放量≤0.2mg/L,氯乙烯单体≤0.3mg/kg,符合QB/T 4463-2013《家具用封边条技术要求》标准要求。\n3.热熔胶：游离甲苯二异氰酸酯未检出，游离甲醛≤0.08g/kg,苯未检出，甲苯+二甲苯未检出，总挥发性有机物≤5g/L,符合GB 18583-2008《室内装饰装修材料胶粘剂中有害物质限量》;HJ 2541-2016《环境标志产品技术要求胶粘剂》标准要求。\n5.含所有五金安装配件。",86,"张"]
[31,"主管桌",null,"1600*800*750，含副柜","1.基材：采用优质三聚氰胺饰面板，静曲强度≥16.6MPa,弹性模量≥3450MPa，内结合强度≥0.40MPa，2h吸水厚度膨胀率≤7.5%，含水率9%；密度0.82g/cm³，表面胶合强度≥1.34 MPa，甲醛释放量E1≤0.041 mg/m³总挥发性有机化合物（TVOC）≤0.50mg/m²·h，符合GB 18580-2017《室内装饰装修材料 人造板及其制品中甲醛释放限量》、HJ571-2010《环境标志产品认证技术要求 人造板及其制品》、GB/T 15102-2017 《浸渍胶膜纸饰面纤维板和刨花板》。\n2.封边：选用优质PVC封边条，挥发物含量≤7g/㎡，可溶性铅≤5mg/㎡；可溶性镉 ≤5mg/㎡；封边平滑，颜色与板材一致，符合GB18586-2001《室内装饰装修材料 聚氯乙烯卷材地板中有害物质限量》。\n3.油漆：采用优质环保水性漆（底漆、面漆），符合GB 18581- 2020《木器涂料中有害物质限量》（水性涂料 清漆）标准要求。VOC含量≤150g/L，甲醛含量≤20mg/kg,乙二醇醚及醚酯总和含量（限乙二醇甲醚、乙二醇甲醚醋酸酯、乙二醇乙醚、乙二醇乙醚醋酸酯、乙二醇二甲醚、乙二醇二乙醚、二乙二醇二甲醚、三乙二醇二甲醚≤150mg/kg，苯系物总和含量[限苯、甲苯、二甲苯（含乙苯）]≤100mg/kg，烷基酚聚氧乙烯醚总和含量[限辛基酚聚氧乙烯醚和壬基酚聚痒乙烯醚]≤50mg/kg。",10,"张","3000元/张"]
[32,"办公椅",{"$f":"_xlfn.DISPIMG(\"ID_162AFB6FC7F0447EB14746779558BB9E\",1)","v":"=DISPIMG(\"ID_162AFB6FC7F0447EB14746779558BB9E\",1)"},"600*500*1150","1.常规面料：采用优质网布，甲醛含量未检出，可分解致癌芳香胺染料均未检出，防霉登记（黑曲霉）0级，符合GB/T 35607-2017《绿色产品评价 家具》；GB/T 20944.1-2007《纺织品 抗菌性能的评价 第1部分:琼脂平皿扩散法》；GB/T24346-2009《纺织品防性能的评价》；GB18401-2010《国家纺织产品基本安全技术规范》；GB/T 5713-2013《纺织品色牢度试验耐水色牢度》标准要求。\n2.海绵：采用优质海绵，75%压缩永久变形≤3%，回弹率≥50%，拉伸强度≥180KPa，伸长率≥201%，撕裂强度3.7N/cm，干热老化后拉伸强度≥161KPa,湿热老化后拉伸强度≥150KPa，抗引燃特性—模拟火柴火焰：未观察到试样表面或内部出现任何续燃、阴燃现象，评定该试样为阻燃Ⅱ级，通过模拟火柴火焰抗燃引燃特性试验，符合GB/T 10802-2006《通用软质聚醚型聚氨酯泡沫塑料》；GB 17927.2-2011《软体家具 床垫和沙发 抗引燃特性的评定 第2部分:模拟火柴火焰》标准要求。\n3.脚架：采用弓形脚。                            ",96,"把","800元/把"]
[33,"文件柜",{"$f":"_xlfn.DISPIMG(\"ID_98D8D2A5F3364B8AB70CB50AC781D983\",1)","v":"=DISPIMG(\"ID_98D8D2A5F3364B8AB70CB50AC781D983\",1)"},"900*400*1850","1.材质：选用0.8mm优质冷轧钢板。\n2.五金件：优质锁具，优质三节滑轨。颜色：门为白色粉，外框为灰色，内嵌式全钢扣手，一体成型，经久耐用、美观大方。喷塑工艺：用国内最先进的全自动流水线精致而成；经十工位表面处理，用环保聚脂塑粉喷塑而成，流水线喷塑而成；喷涂材料采用硬度最强耐腐蚀性最高不易褪色的环氧聚脂粉,经阳级氧化处理，具有防尘、阻燃、防静电、防污耐磨防潮的功能,喷塑硬度≥0.40，漆膜厚度≥50μm。质量符合国家环保标准。",96,"个","1000元/组"]
[34,"会议桌",{"$f":"_xlfn.DISPIMG(\"ID_6A92D70734B24C4B91867517E6FD764C\",1)","v":"=DISPIMG(\"ID_6A92D70734B24C4B91867517E6FD764C\",1)"},"3200*1200*750","1.基材：采用优质E0级环保密度板，符合GB/T 39600-2021《人造板及其制品甲醛释放量分级》其中将甲醛释放量E0级不超过0.050mg/m³。\n2.面材：面板贴优质红胡桃木皮，含水率低，甲醛释放量≤0.1mg/m³，符合GB/T 18580-2017《室内装饰装修材料 人造板及其制品中甲醛释放限量》、GB/T 13010-2020《木材工业用单板》标准要求。\n3.白乳胶：游离甲醛≤0.08g/kg,苯≤0.1g/kg，甲苯+二甲苯＜0.1g/kg，总挥发性有机物≤30g/L；符合GB 18583-2008《室内装饰装修材料 胶粘剂中有害物质限量》(水机型聚乙酸乙烯酯胶粘剂)标准要求。\n4.油漆（含水性底漆和水性面漆）:有害物质限量：VOC含量（涂料）未检出，甲醛含量未检出，符合GB 18581- 2020《木器涂料中有害物质限量》标准要求。\n5.含所有五金安装配件。",1,"张","1600元/平方米"]
[35,"会议椅",null,"常规","1. 面料：采用优质西皮，游离甲醛未检出，挥发性有机物（VOC）未检出，可萃取重金属（铅、镉）未检出，禁用偶氮染料未检出，皮革防霉等级1级（无霉菌生长，光学显微镜放大50倍观察），符合QB/T4199-2011《皮革 防霉性能测试方法》:GB/T 16799-2018《家具用皮革》标准要求。\n2.海绵：采用优质海绵，75%压缩永久变形≤3%，回弹率≥50%，拉伸强度≥180KPa，伸长率≥201%，撕裂强度3.7N/cm，干热老化后拉伸强度≥161KPa,湿热老化后拉伸强度≥150KPa，抗引燃特性—模拟火柴火焰：未观察到试样表面或内部出现任何续燃、阴燃现象，评定该试样为阻燃Ⅱ级，通过模拟火柴火焰抗燃引燃特性试验，符合GB/T 10802-2006《通用软质聚醚型聚氨酯泡沫塑料》；GB 17927.2-2011《软体家具 床垫和沙发 抗引燃特性的评定 第2部分:模拟火柴火焰》标准要求。                             \n3.脚架： 采用优质实木脚。",8,"把","800元/把"]
[36,"党建书柜",null,"900*400*2000","1. 基材：采用优质三聚氰胺饰面刨花板，外观质量无污斑、无表面划痕、无表面压痕、无干花、湿花、无鼓包、静曲强度≥20.0MPa、弹性模量≥3200MPa、2h吸水厚度膨胀率≤5.8%、含水率7.3%、密度0.77g/cm³、握螺钉力（板面≥1300N、板边≥1000N），表面耐香烟灼烧5级，表面耐污染腐蚀5级，甲醛释放量未检出，总挥发性有机化合物（TVOC）未检出，防霉菌等级（黑曲霉）0级，符合JC/T 2039-2010《抗菌防霉木质装饰板》；GB 18580-2017《室内装饰装修材料人造板及其制品中甲醛释》；GB/T 15102-2017《浸渍胶膜纸饰面纤维板和创花板》；GB/T 35601-2017《绿色产品评价人造板和木质地板》标准要求。\n2.封边：选用优质封边条，可迁移元素（可溶性重金属）：铅、镉、铬、汞、砷、钡、锑、硒均未检出，塑料封边条：甲醛释放量≤0.2mg/L,氯乙烯单体≤0.3mg/kg,符合QB/T 4463-2013《家具用封边条技术要求》标准要求。\n3.热熔胶：游离甲苯二异氰酸酯未检出，游离甲醛≤0.08g/kg,苯未检出，甲苯+二甲苯未检出，总挥发性有机物≤5g/L,符合GB 18583-2008《室内装饰装修材料胶粘剂中有害物质限量》;HJ 2541-2016《环境标志产品技术要求胶粘剂》标准要求。\n4.含所有五金安装配件。",4,"组","1200元/组"]
[37,"上下铺",{"$f":"_xlfn.DISPIMG(\"ID_2BF8ADC872534923B8747740FDC838D1\",1)","v":"=DISPIMG(\"ID_2BF8ADC872534923B8747740FDC838D1\",1)"},"4500*1200*2200（四人床位，床铺中间独立设置步梯上下）","一、双层床规格L4500*1200*2200mm，（四人床位，床铺中间独立设置步梯上下）\n1.边立柱：采用优质高频焊接封口型管材,外形尺寸65mm*65mm壁厚≥1.3mm弧形带2条加强筋的闭口型材管，直边长度为44mm，弧形面半径为32mm，型材成型方式为优质冷轧钢板经成型线轧制而成。立脚两端加装一次注塑成型胶塞，采用聚丙烯（PP）注塑一次成型。\n2.前后床厅：采用外形尺寸72*32mm壁厚≥1.3mm高频焊接闭口型材管，型材成型方式为优质冷轧钢板经成型线轧制而成。中间一根加强筋，圆角半径为16mm，两边角圆角半径为10mm，既美观又耐用。型材整体外观无棱角，为圆角设计，保证使用安全。\n3.立柱与床厅连接方式：立柱与横梁卡扣式连接挂件均位于立柱一个完整L形带弧形面卡式安装贴合，卡式连接件外形尺寸为30*202mm、厚度为2mm.3个挂件挂舌与立柱3个挂孔卡式插入，依靠床铺组件自重力胀紧连接，卡式连接挂件为冷轧钢板冲压成型，厚度2mm；连接扣点采用3个位置连接并在中间位置设置防退凸包，越用越紧易扣难取。\n4.床换：采用20*30mm壁厚≥1.0mm方管，两端冲孔，与前后床厅采用插孔式连接，稳固避免有松动于摩擦声响，保证安全。\n5.床两头挡头：下横换采用27*47*1.0mm方管，上横换采用25*25方管*1.0mm厚，竖支撑采用密度板封装无缝隙。\n6.上床护栏：外框及横换采用20*20*1.0mm方管，立撑采用20*20*1.0mm方管，护栏总高度为300mm，长1850mm.\n7.爬梯：采用密度板制作4步梯内设储物柜，横换采用25*25*1.2mm厚作为内衬，踏板采用冷轧钢板1.5厚配夜光条。\n8.床铺板：采用12mm厚实木双面抛光板，无腐蚀带四匹加强筋。床板长宽尺寸必须符合铁床的规格要求。经防蛀、防潮、防噪处理。\n9.床头储物柜：850*260*400mm采用密度板16mm厚，优质五金配件，窗帘杆：采用16圆管1.2mm厚，配优质五金配件顺畅丝滑，易拆卸。\n二、工艺要求：\n1.钢质部分：表面经除油除锈处理后，环氧树脂固体粉末静电喷涂。焊接采用机器人二氧化碳保护焊，优质镀铜焊丝。焊接无灰渣、气孔、焊瘤；无脱焊、虚焊、焊穿；精细打磨，光洁平整。烘烤温度：210℃-225℃，恒温时间45分钟。\n三、产品执行标准：\nQB/T 2741-2013   《学生公寓多功能家具》\nGB/T3325-2017    《金属家具通用技术条件》\nGB/T 32487-2016  《塑料家具通用技术条件》",66,"组"]
[38,"衣柜",{"$f":"_xlfn.DISPIMG(\"ID_AC0BB5E57FAE4B4FACFD39672CF08C1F\",1)","v":"=DISPIMG(\"ID_AC0BB5E57FAE4B4FACFD39672CF08C1F\",1)"},"900*450*1800","材质：选用0.8mm优质冷轧钢板。五金件：专利旺通锁具，优质三节滑轨。颜色：门为白色粉，外框为灰色，内嵌式全钢扣手，一体成型，经久耐用、美观大方。喷塑工艺：用国内最先进的全自动流水线精致而成；经十工位表面处理，用环保“杜邦华佳环氧”聚脂塑粉喷塑而成，流水线喷塑而成；喷涂材料采用硬度最强耐腐蚀性最高不易褪色的环氧聚脂粉,经阳级氧化处理，具有防尘、阻燃、防静电、防污耐磨防潮的功能,喷塑硬度≥0.40，漆膜冲击强度≥N/m，漆膜厚度≥50μm。包装内含有安装图纸和视频，方便现场安装。质量符合国家环保标准。",132,"个"]
[39,"书桌",{"$f":"_xlfn.DISPIMG(\"ID_E1FCC40B795D420C9EDEFC4183B069D0\",1)","v":"=DISPIMG(\"ID_E1FCC40B795D420C9EDEFC4183B069D0\",1)"},"1200*600*750","1.基材：采用优质三聚氰胺饰面板，外观质量无污斑、无表面划痕、无表面压痕、无干花、湿花、无鼓包、静曲强度≥20.0MPa、弹性模量≥3200MPa、2h吸水厚度膨胀率≤5.8%、含水率7.3%、密度0.77g/cm³、握螺钉力（板面≥1300N、板边≥1000N），表面耐香烟灼烧5级，表面耐污染腐蚀5级，甲醛释放量未检出，总挥发性有机化合物（TVOC）未检出，防霉菌等级（黑曲霉）0级，符合JC/T 2039-2010《抗菌防霉木质装饰板》；GB 18580-2017《室内装饰装修材料人造板及其制品中甲醛释》；GB/T 15102-2017《浸渍胶膜纸饰面纤维板和创花板》；GB/T 35601-2017《绿色产品评价人造板和木质地板》标准要求。\n2.封边：选用优质封边条，可迁移元素（可溶性重金属）：铅、镉、铬、汞、砷、钡、锑、硒均未检出，塑料封边条：甲醛释放量≤0.2mg/L,氯乙烯单体≤0.3mg/kg,符合QB/T 4463-2013《家具用封边条技术要求》标准要求。\n3.热熔胶：游离甲苯二异氰酸酯未检出，游离甲醛≤0.08g/kg,苯未检出，甲苯+二甲苯未检出，总挥发性有机物≤5g/L,符合GB 18583-2008《室内装饰装修材料胶粘剂中有害物质限量》;HJ 2541-2016《环境标志产品技术要求胶粘剂》标准要求。\n4.含所有五金安装配件。",66,"张"]
[40,"椅子",null,"常规","1.基材：采用优质实木橡木，甲醛释放量≤0.1mg/L，木材抗弯强度≥80Mpa，具有硬度高，承受力强，耐腐朽等性能，符合GB/T3324-2017《木家具通用技术条件》、GB18584-2001《室内装饰装修材料木家具中有害物质限量》、GB/T1936.1-2009《木材抗弯强度试验方法》标准。\n2.涂料：采用优质环保水性底漆、水性面漆，VOC含量≤80g/L，甲醛含量未检出，苯系物总和含量［限苯、甲苯、二甲苯（含乙苯）］未检出，涂层平整，无颗粒，颜色均匀，符合GB18581-2020《木器涂料中有害物质限量》、HJ2537-2014《环境标志产品技术要求水性涂料》标准。",66,"把"]
[41,"桌椅",null,"1200*600*750（含4把配套椅子）","1.面材：采用优质防火板，甲醛释放量≤0.2mg/L，平板状建筑材料及制品的燃烧性能B1（B）级检测合格，具有耐磨、耐热、耐污染特性，符合GB/T9846-2015《普通胶合板》、GB18584-2001《室内装饰装修材料木家具中有害物质限量》、GB8624-2012《建筑材料及制品燃烧性能分级》标准。\n2.封边：采用优质激光封边条，甲醛释放量未检出，氯乙烯单体未检出，耐变形、耐开裂，无缝，零胶线，符合QB/T4463-2013《家具用封边条技术要求》标准。\n3.热熔胶：采用优质热熔胶，苯未检出，总挥发性有机物未检出，黏合强度大，稳定性强，符合HJ2541-2016《环境标志产品技术要求胶粘剂》标准。\n4.脚架：采用优质钢管，220h乙酸盐雾试验(AASS试验)≥10级，符合GB/T3325-2017《金属家具通用技术条件》、QB/T3832-1999《轻工产品金属镀层腐蚀试验结果的评价》标准。",45,"套"]
[42,"圆桌",{"$f":"_xlfn.DISPIMG(\"ID_06680F3526064084BE5CA78384477F0B\",1)","v":"=DISPIMG(\"ID_06680F3526064084BE5CA78384477F0B\",1)"},"直径2米","1.基材：橡木框架，绿色环保型实木多层板。经耐酸碱、防虫、防腐特殊处理，基材的游离甲醛释放量符合国家标准E1级环保标准，抗弯力强，不易变形，含水率小于12%。\n2.面材：优质进口天然实木皮贴面，木纹清晰、优美自然。 转盘12MM耐磨耐刮岩板材质\n3.油漆：高亮光钢琴烤漆，五底三面，透明度高，附着力强\n4.五金件：机芯为特种落地钢架，品牌电机，电子遥控，速度可调节，含两个电磁炉。",2,"张"]
[43,null,null,"直径2.6米","1.基材：橡木框架，绿色环保型实木多层板。经耐酸碱、防虫、防腐特殊处理，基材的游离甲醛释放量符合国家标准E1级环保标准，抗弯力强，不易变形，含水率小于12%。\n2.面材：优质进口天然实木皮贴面，木纹清晰、优美自然。 转盘12MM耐磨耐刮岩板材质\n3.油漆：高亮光钢琴烤漆，五底三面，透明度高，附着力强\n4.五金件：机芯为特种落地钢架，品牌电机，电子遥控，速度可调节，含两个电磁炉。",1,"张"]
[44,"餐椅",null,"常规","高回弹海棉，优质耐磨西皮，优质聚脂油漆，五底三面，透明度高，附着力强",45,"把"]
[45,"茶水柜",{"$f":"_xlfn.DISPIMG(\"ID_0263AADC14CD4046B1529C21420CB92C\",1)","v":"=DISPIMG(\"ID_0263AADC14CD4046B1529C21420CB92C\",1)"},"1200*400*820","1.基材：采用优质E0级环保密度板，符合GB/T 39600-2021《人造板及其制品甲醛释放量分级》其中将甲醛释放量E0级不超过0.050mg/m³。\n2.面材：面板贴优质红胡桃木皮，含水率低，甲醛释放量≤0.1mg/m³，符合GB/T 18580-2017《室内装饰装修材料 人造板及其制品中甲醛释放限量》、GB/T 13010-2020《木材工业用单板》标准要求。\n3.白乳胶：游离甲醛≤0.08g/kg,苯≤0.1g/kg，甲苯+二甲苯＜0.1g/kg，总挥发性有机物≤30g/L；符合GB 18583-2008《室内装饰装修材料 胶粘剂中有害物质限量》(水机型聚乙酸乙烯酯胶粘剂)标准要求。\n4.油漆（含水性底漆和水性面漆）:有害物质限量：VOC含量（涂料）未检出，甲醛含量未检出，符合GB 18581- 2020《木器涂料中有害物质限量》标准要求。\n5.含所有五金安装配件。",2,"张","1500元/张"]
[46,"三人沙发一张，单人沙发两张",null,"三人位2290*835*720mm\n单人位930*835*720mm","1.面料：采用优质麻布，甲醛含量未检出，抗引燃特性-模拟火柴火焰试件表面未发现续燃或阴燃现象，耐磨性强，阻燃，经防污处理，清洁方便。\n2.海绵：采用高弹阻燃海绵，甲醛释放量≤0.025mg/㎡h，TVOC未检出，抗引燃特性-阴燃的香烟试件表面未发现续燃或阴燃现象，软硬适中，回弹性好。\n3.框架：采用进口胡桃木，甲醛释放量≤0.1mg/L，木材抗弯强度≥80Mpa，具有硬度高，承受力强，耐腐朽等性能，符合GB/T3324-2017《木家具通用技术条件》、GB18584-2001《室内装饰装修材料木家具中有害物质限量》、GB/T1936.1-2009《木材抗弯强度试验方法》标准。\n4.涂料：采用优质环保水性底漆、水性面漆，VOC含量≤80g/L，甲醛含量未检出，苯系物总和含量［限苯、甲苯、二甲苯（含乙苯）］未检出，涂层平整，无颗粒，颜色均匀，符合GB18581-2020《木器涂料中有害物质限量》、HJ2537-2014《环境标志产品技术要求水性涂料》标准。",1,"套","6000元/套"]
[47,"茶几",{"$f":"_xlfn.DISPIMG(\"ID_356C208B8B5D43D3A9B24B0615C269F4\",1)","v":"=DISPIMG(\"ID_356C208B8B5D43D3A9B24B0615C269F4\",1)"},"1200*600*430","1.基材：采用优质E0级环保密度板，符合GB/T 39600-2021《人造板及其制品甲醛释放量分级》其中将甲醛释放量E0级不超过0.050mg/m³。\n2.面材：面板贴优质红胡桃木皮，含水率低，甲醛释放量≤0.1mg/m³，符合GB/T 18580-2017《室内装饰装修材料 人造板及其制品中甲醛释放限量》、GB/T 13010-2020《木材工业用单板》标准要求。\n3.白乳胶：游离甲醛≤0.08g/kg,苯≤0.1g/kg，甲苯+二甲苯＜0.1g/kg，总挥发性有机物≤30g/L；符合GB 18583-2008《室内装饰装修材料 胶粘剂中有害物质限量》(水机型聚乙酸乙烯酯胶粘剂)标准要求。\n4.油漆（含水性底漆和水性面漆）:有害物质限量：VOC含量（涂料）未检出，甲醛含量未检出，符合GB 18581- 2020《木器涂料中有害物质限量》标准要求。\n5.含所有五金安装配件。",1,"张","1000元/张"]
["合计"]